bitfinex-derivatives/quotes_BTCF0:USTF0_20250913
["timestamp","ask_amount","ask_price","bid_price","bid_amount"]
[1757727794295,0.38636786,115950.0,115940.0,3.32383643]
[1757727794490,0.3619293,115950.0,115940.0,3.09181491]
[1757727794688,0.3619293,115950.0,115940.0,3.32375643]
[1757727795090,0.38638554,115950.0,115940.0,3.32375643]
[1757727795393,0.3619293,115950.0,115940.0,3.32375643]
[1757727797597,0.3619293,115950.0,115940.0,2.52731643]
[1757727797996,0.3619293,115950.0,115940.0,3.32367643]
[1757727798200,0.3619293,115950.0,115940.0,3.09173491]
[1757727798394,0.3619293,115950.0,115940.0,2.52731643]
[1757727798698,0.38639458,115950.0,115940.0,3.32359643]
[1757727802499,0.38639458,115950.0,115940.0,2.52731643]
[1757727802701,0.38639458,115950.0,115940.0,3.32299643]
[1757727803395,0.38639458,115950.0,115940.0,3.09105491]
[1757727803596,0.38639458,115950.0,115940.0,3.32299643]
[1757727807103,0.38639458,115950.0,115940.0,3.09105491]
[1757727807297,0.38639458,115950.0,115940.0,3.32299643]
[1757727807800,0.38639458,115950.0,115940.0,3.09105491]
[1757727808101,0.38639458,115950.0,115940.0,3.32299643]
[1757727813605,0.80408226,115950.0,115940.0,2.91149875]
[1757727813806,0.72676842,115950.0,115940.0,2.98881259]
[1757727815902,0.72676842,115950.0,115940.0,2.83418491]
[1757727816098,0.72676842,115950.0,115940.0,2.98881259]
[1757727816302,0.64945458,115950.0,115940.0,3.06612643]
[1757727818511,0.64945458,115950.0,115940.0,2.98881259]
[1757727819313,0.39945458,115950.0,115940.0,2.98881259]
[1757727821914,0.47676842,115950.0,115940.0,2.98881259]
[1757727822916,0.39945458,115950.0,115940.0,2.98881259]
[1757727823111,0.47676842,115950.0,115940.0,2.98881259]
[1757727825309,0.39945458,115950.0,115940.0,2.98881259]
[1757727825504,0.47676842,115950.0,115940.0,2.98881259]
[1757727827812,0.47676842,115950.0,115940.0,2.19361259]
[1757727828120,0.47676842,115950.0,115940.0,2.98693259]
[1757727828316,0.47676842,115950.0,115940.0,2.19361259]
[1757727828620,0.47676842,115950.0,115940.0,2.98693259]
[1757727830622,0.39945458,115950.0,115940.0,2.93541389]
[1757727831917,0.39945458,115950.0,115940.0,1.27921389]
[1757727832718,0.39945458,115950.0,115940.0,0.48589389]
[1757727832925,0.42239458,115950.0,115940.0,1.27905389]
[1757727833120,0.4994811,115950.0,115940.0,1.27905389]
[1757727835930,0.45323509,115950.0,115940.0,1.27905389]
[1757727837327,0.45323509,115950.0,115940.0,1.38216287]
[1757727840126,0.4994811,115950.0,115940.0,1.38216287]
[1757727841826,0.4994811,115950.0,115940.0,1.17594491]
[1757727842129,0.4994811,115950.0,115940.0,1.38216287]
[1757727843033,0.42239458,115950.0,115940.0,1.38216287]
[1757727843330,0.45323509,115950.0,115940.0,1.38216287]
[1757727843734,0.42239458,115950.0,115940.0,1.38216287]
[1757727847043,0.42239458,115950.0,115940.0,1.17594491]
[1757727847342,0.42239458,115950.0,115940.0,1.38216287]
[1757727848745,0.42239458,115950.0,115940.0,1.38214064]
[1757727849443,0.42239458,115950.0,115940.0,1.17592268]
[1757727849646,0.42239458,115950.0,115940.0,1.38214064]
[1757727849846,0.38639458,115950.0,115940.0,1.38853064]
[1757727853748,0.40802458,115950.0,115940.0,1.38841064]
[1757727856453,0.42090458,115950.0,115940.0,0.38276268]
[1757727856651,0.42090458,115950.0,115940.0,1.38202064]
[1757727871965,0.42090458,115950.0,115940.0,1.38182064]
[1757727872560,0.42090458,115950.0,115940.0,1.38178064]
[1757727873067,0.45174509,115950.0,115940.0,1.38178064]
[1757727873371,0.4979911,115950.0,115940.0,1.38178064]
[1757727874557,0.45174509,115950.0,115940.0,1.38174064]
[1757727874763,0.4979911,115950.0,115940.0,1.38174064]
[1757727874957,0.60110008,115950.0,115940.0,0.48587166]
[1757727875163,0.82025957,115950.0,115940.0,0.01058268]
[1757727875362,0.83570591,115950.0,115940.0,0.02398268]
[1757727875569,0.83570591,115950.0,115940.0,0.40810268]
[1757727875763,0.96552434,115950.0,115940.0,0.40810268]
[1757727875969,0.96552434,115950.0,115940.0,0.01058268]
[1757727876165,0.96552434,115950.0,115940.0,0.77298268]
[1757727876371,0.96752434,115950.0,115940.0,0.77098268]
[1757727876667,0.96752434,115950.0,115940.0,0.00858268]
[1757727876873,0.96752434,115950.0,115940.0,0.80134268]
[1757727877171,0.96652434,115950.0,115940.0,0.80134268]
[1757727877365,0.96952434,115950.0,115940.0,0.79934268]
[1757727877871,0.96952434,115950.0,115940.0,0.00658268]
[1757727878064,0.96952434,115950.0,115940.0,0.79934268]
[1757727879071,0.96952434,115950.0,115940.0,0.00658268]
[1757727879266,0.96952434,115950.0,115940.0,0.79934268]
[1757727879267,0.71952434,115950.0,115940.0,0.79934268]
[1757727880073,0.71952434,115950.0,115940.0,0.00658268]
[1757727880267,0.65783199,115950.0,115940.0,0.79934268]
[1757727881970,0.96952434,115950.0,115940.0,0.79934268]
[1757727882373,0.90783199,115950.0,115940.0,0.79934268]
[1757727882572,0.90783199,115950.0,115940.0,0.79930268]
[1757727883068,0.95401516,115950.0,115940.0,0.00658268]
[1757727883260,0.95401516,115950.0,115940.0,0.79930268]
[1757727884274,0.97373444,115950.0,115940.0,0.79930268]
[1757727884567,0.97373444,115950.0,115940.0,0.00658268]
[1757727884775,0.97373444,115950.0,115940.0,0.79930268]
[1757727885175,0.97373444,115950.0,115940.0,0.79926268]
[1757727885671,0.97373444,115950.0,115940.0,0.00658268]
[1757727885875,0.97373444,115950.0,115940.0,0.79926268]
[1757727886575,0.97373444,115950.0,115940.0,0.00658268]
[1757727886775,0.97373444,115950.0,115940.0,0.39074268]
[1757727887477,0.97373444,115950.0,115940.0,0.75570268]
[1757727887776,0.97373444,115950.0,115940.0,0.79926268]
[1757727889280,0.97373444,115950.0,115940.0,0.00658268]
[1757727889577,0.97373444,115950.0,115940.0,0.79922268]
[1757727889778,1.00450576,115950.0,115940.0,0.79922268]
[1757727889978,0.97373444,115950.0,115940.0,0.79922268]
[1757727892379,1.10269931,115950.0,115940.0,0.79922268]
[1757727894981,1.10269931,115950.0,115940.0,0.00658268]
[1757727895183,1.10269931,115950.0,115940.0,0.44058268]
[1757727895778,1.10269931,115950.0,115940.0,0.00658268]
[1757727896184,1.10269931,115950.0,115940.0,0.44050268]
[1757727896383,1.10269931,115950.0,115940.0,0.79910268]
[1757727897585,1.10269931,115950.0,115940.0,0.00658268]
[1757727897774,0.87062546,115950.0,115940.0,0.43822268]
[1757727897977,1.10269931,115950.0,115940.0,0.43822268]
[1757727898385,1.10269931,115950.0,115940.0,0.00658268]
[1757727902088,1.07823403,115950.0,115940.0,0.00658268]
[1757727902492,1.10267088,115950.0,115940.0,0.00658268]
[1757727903184,1.05648771,115950.0,115940.0,0.00658268]
[1757727904289,1.11818006,115950.0,115940.0,0.00658268]
[1757727904786,0.86818006,115950.0,115940.0,0.00658268]
[1757727906887,0.80648771,115950.0,115940.0,0.00658268]
[1757727907191,0.8836004,115950.0,115940.0,0.00658268]
[1757727907687,0.80648771,115950.0,115940.0,0.00658268]
[1757727909285,0.86817687,115950.0,115940.0,0.00658268]
[1757727913594,0.85273272,115950.0,115940.0,0.00658268]
[1757727917196,0.86817687,115950.0,115940.0,0.00658268]
[1757727919699,0.80648771,115950.0,115940.0,0.00658268]
[1757727921400,0.86817687,115950.0,115940.0,0.00658268]
[1757727923200,0.03572,115930.0,115920.0,0.89206795]
[1757727923403,0.87904348,115930.0,115920.0,0.89206795]
[1757727923695,0.78175685,115930.0,115920.0,1.88678385]
[1757727923895,0.79227764,115930.0,115920.0,1.89991385]
[1757727924501,0.79327764,115930.0,115920.0,1.90091385]
[1757727925597,0.79327764,115930.0,115920.0,1.66884]
[1757727925798,0.79327764,115930.0,115920.0,1.90091385]
[1757727930406,0.82410604,115930.0,115920.0,1.90091385]
[1757727933107,0.74703685,115930.0,115920.0,1.90091385]
[1757727934705,0.74703685,115930.0,115920.0,1.10867385]
[1757727934906,0.74703685,115930.0,115920.0,1.90043385]
[1757727936207,0.74703685,115930.0,115920.0,1.10867385]
[1757727936409,0.74703685,115930.0,115920.0,1.90039385]
[1757727938707,0.7226,115930.0,115920.0,1.90039385]
[1757727938910,0.74707076,115930.0,115920.0,1.90039385]
[1757727939308,0.74707076,115930.0,115920.0,1.65039385]
[1757727941308,0.74707076,115930.0,115920.0,1.41832]
[1757727941512,0.74707076,115930.0,115920.0,1.65039385]
[1757727947216,0.74707076,115930.0,115920.0,1.41832]
[1757727947419,0.74707076,115930.0,115920.0,1.65039385]
[1757727951530,0.74707076,115930.0,115920.0,1.41832]
[1757727951832,0.74707076,115930.0,115920.0,1.65039385]
[1757727954420,0.74707076,115930.0,115920.0,1.624545]
[1757727957129,0.74707076,115930.0,115920.0,1.7276575]
[1757727958327,0.38627076,115930.0,115920.0,1.9776575]
[1757727960934,0.38629808,115930.0,115920.0,1.9776575]
[1757727961633,0.38629808,115930.0,115920.0,1.1859375]
[1757727961829,0.38629808,115930.0,115920.0,1.9770975]
[1757727962433,0.38629808,115930.0,115920.0,1.1859375]
[1757727962640,0.38629808,115930.0,115920.0,1.9770575]
[1757727962832,0.38629808,115930.0,115920.0,3.6336575]
[1757727969334,0.38629808,115930.0,115920.0,3.3836575]
[1757727970937,0.3618,115930.0,115920.0,3.3836575]
[1757727971339,0.38628799,115930.0,115920.0,3.3836575]
[1757727981139,0.38628799,115930.0,115920.0,3.1774325]
[1757727981343,0.38628799,115930.0,115920.0,3.3836575]
[1757727983149,0.3618,115930.0,115920.0,3.3836575]
[1757727986454,0.001,115930.0,115920.0,3.3836575]
[1757727987553,0.3618,115930.0,115920.0,3.3836575]
[1757727987950,0.001,115930.0,115920.0,3.3836575]
[1757727988155,0.3618,115930.0,115920.0,3.3836575]
[1757727988755,0.3618,115930.0,115920.0,3.3830575]
[1757727989854,0.3618,115930.0,115920.0,2.5925375]
[1757727990058,0.3618,115930.0,115920.0,3.3830575]
[1757727991452,0.3618,115930.0,115920.0,3.3830175]
[1757728002759,0.3618,115930.0,115920.0,2.5925375]
[1757728002959,0.3618,115930.0,115920.0,3.3828575]
[1757728008064,0.3618,115930.0,115920.0,3.3828175]
[1757728013169,0.38661407,115930.0,115920.0,3.3828175]
[1757728015270,0.38661407,115930.0,115920.0,3.3827775]
[1757728016469,0.38661407,115930.0,115920.0,3.46010559]
[1757728017965,0.38661407,115930.0,115920.0,3.30542427]
[1757728023167,0.3618,115930.0,115920.0,3.30542427]
[1757728026073,0.3618,115930.0,115920.0,3.30534427]
[1757728026274,0.3618,115930.0,115920.0,2.51518427]
[1757728026474,0.3618,115930.0,115920.0,3.30534427]
[1757728027676,0.38661547,115930.0,115920.0,3.30534427]
[1757728028377,0.38661547,115930.0,115920.0,3.30530427]
[1757728028777,0.38661547,115930.0,115920.0,2.51518427]
[1757728028981,0.38661547,115930.0,115920.0,3.30530427]
[1757728031780,0.3618,115930.0,115920.0,3.30530427]
[1757728031974,0.38661307,115930.0,115920.0,3.30530427]
[1757728036685,0.3618,115930.0,115920.0,3.30530427]
[1757728036984,0.001,115930.0,115920.0,3.30530427]
[1757728037289,0.001,115930.0,115920.0,4.01841497]
[1757728037487,0.43091046,115940.0,115930.0,0.02929]
[1757728037688,0.45572302,115940.0,115930.0,0.88127427]
[1757728038090,0.43091046,115940.0,115930.0,0.88127427]
[1757728038788,0.43191046,115940.0,115930.0,0.88227427]
[1757728038987,0.43391046,115940.0,115930.0,0.88227427]
[1757728039578,0.43391046,115940.0,115930.0,0.89189869]
[1757728042893,0.3638,115940.0,115930.0,0.89189869]
[1757728043193,0.0001293,115950.0,115940.0,0.02743]
[1757728043392,0.02493052,115950.0,115940.0,1.66941427]
[1757728043988,0.0001293,115950.0,115940.0,1.66941427]
[1757728045292,0.0011293,115950.0,115940.0,1.67041427]
[1757728045684,0.0031293,115950.0,115940.0,1.67041427]
[1757728051500,0.0031293,115950.0,115940.0,2.03121427]
[1757728058810,0.0031293,115950.0,115940.0,3.68749427]
[1757728060306,0.40151936,115950.0,115940.0,2.53030427]
[1757728060608,0.40151936,115950.0,115940.0,3.32006427]
[1757728062003,0.04071936,115950.0,115940.0,3.32006427]
[1757728062703,0.02790936,115950.0,115940.0,3.32645427]
[1757728063099,0.02790936,115950.0,115940.0,3.68725427]
[1757728076521,0.02790936,115950.0,115940.0,3.66142804]
[1757728092442,0.02790936,115950.0,115940.0,2.00514804]
[1757728102044,0.02790936,115950.0,115940.0,3.66142804]
[1757728105144,0.02790936,115950.0,115940.0,3.45479]
[1757728105450,0.02790936,115950.0,115940.0,3.66094804]
[1757728106949,0.02790936,115950.0,115940.0,2.00466804]
[1757728107158,0.02790936,115950.0,115940.0,1.79851]
[1757728107455,0.02790936,115950.0,115940.0,2.00466804]
[1757728107751,0.04119936,115950.0,115940.0,1.20899804]
[1757728107948,0.07202776,115950.0,115940.0,1.99823804]
[1757728108145,0.07202776,115950.0,115940.0,1.63743804]
[1757728111154,0.09442776,115950.0,115940.0,0.84819804]
[1757728111354,0.06359936,115950.0,115940.0,1.63739804]
[1757728114659,0.06359936,115950.0,115940.0,1.31735804]
[1757728119262,0.06359962,115950.0,115940.0,1.31735804]
[1757728130165,0.67439962,115950.0,115940.0,0.42511902]
[1757728130467,0.67439962,115950.0,115940.0,1.21403902]
[1757728130660,0.67439962,115950.0,115940.0,1.31711804]
[1757728131058,0.67439962,115950.0,115940.0,1.11096]
[1757728131258,0.67439962,115950.0,115940.0,1.21403902]
[1757728133567,0.67439962,115950.0,115940.0,1.31711804]
[1757728136371,0.67439962,115950.0,115940.0,1.26561992]
[1757728136762,0.67439962,115950.0,115940.0,1.11096]
[1757728137068,0.67439962,115950.0,115940.0,1.26561992]
[1757728137770,0.67439962,115950.0,115940.0,1.34294988]
[1757728138472,0.75172958,115950.0,115940.0,1.34294988]
[1757728139661,0.67439962,115950.0,115940.0,1.34294988]
[1757728143571,0.06359962,115950.0,115940.0,1.34933988]
[1757728143775,0.05030962,115950.0,115940.0,1.34933988]
[1757728144775,0.02790962,115950.0,115940.0,1.34933988]
[1757728145177,0.02790962,115950.0,115940.0,1.11735]
[1757728145475,0.02790962,115950.0,115940.0,1.34933988]
[1757728148478,0.02790962,115950.0,115940.0,1.11735]
[1757728148676,0.02790962,115950.0,115940.0,1.34933988]
[1757728153577,0.0339577,115950.0,115940.0,0.32204]
[1757728153776,0.53352798,115950.0,115940.0,1.26533992]
[1757728154387,0.53352798,115950.0,115940.0,1.11068]
[1757728154586,0.53352798,115950.0,115940.0,1.26533992]
[1757728155969,0.45619802,115950.0,115940.0,1.26533992]
[1757728156177,0.45619802,115950.0,115940.0,1.34266988]
[1757728158584,0.50243881,115950.0,115940.0,1.34266988]
[1757728159285,0.50243881,115950.0,115940.0,1.11068]
[1757728159483,0.50243881,115950.0,115940.0,1.34266988]
[1757728160782,0.45619802,115950.0,115940.0,1.34266988]
[1757728161193,0.45619802,115950.0,115940.0,1.11068]
[1757728161389,0.45619802,115950.0,115940.0,1.34266988]
[1757728162791,0.45619802,115950.0,115940.0,1.34905988]
[1757728163686,0.42536962,115950.0,115940.0,1.34905988]
[1757728164079,0.42536962,115950.0,115940.0,1.34266988]
[1757728177789,0.42536962,115950.0,115940.0,1.11068]
[1757728178091,0.42536962,115950.0,115940.0,1.34266988]
[1757728179685,0.38870962,115950.0,115940.0,1.34905988]
[1757728179889,0.38870962,115950.0,115940.0,1.59905988]
[1757728193810,0.41953802,115950.0,115940.0,1.59905988]
[1757728197607,0.41953802,115950.0,115940.0,0.81041988]
[1757728197816,0.41953802,115950.0,115940.0,1.59845988]
[1757728198413,0.41953802,115950.0,115940.0,1.5726378]
[1757728200317,0.41953802,115950.0,115940.0,0.7845978]
[1757728200814,0.41953802,115950.0,115940.0,1.5725978]
[1757728203617,0.38870962,115950.0,115940.0,1.5725978]
[1757728203814,0.02790962,115950.0,115940.0,1.7864817]
[1757728204013,0.02790962,115950.0,115940.0,2.0364817]
[1757728205215,0.02790962,115950.0,115940.0,2.3025817]
[1757728211722,0.02790962,115950.0,115940.0,2.3023817]
[1757728212022,0.02790962,115950.0,115940.0,2.3023417]
[1757728214426,0.02790962,115950.0,115940.0,1.5145817]
[1757728214625,0.0031293,115950.0,115940.0,2.3023017]
[1757728215225,0.0031293,115950.0,115940.0,1.5145817]
[1757728215524,0.0031293,115950.0,115940.0,2.3023017]
[1757728216321,0.0031293,115950.0,115940.0,2.3022617]
[1757728217926,0.0031293,115950.0,115940.0,1.5145817]
[1757728218224,0.0031293,115950.0,115940.0,2.3022617]
[1757728218923,0.0031293,115950.0,115940.0,3.9585017]
[1757728219422,0.0031293,115950.0,115940.0,2.61157]
[1757728219629,0.28602398,115950.0,115940.0,3.6010278]
[1757728219929,0.3111647,115950.0,115940.0,3.6010278]
[1757728223022,0.3111647,115950.0,115940.0,2.5452478]
[1757728223621,0.28602398,115950.0,115940.0,2.5452478]
[1757728224532,0.28602398,115950.0,115940.0,3.3348478]
[1757728225130,0.28602398,115950.0,115940.0,2.5452478]
[1757728226125,0.28602398,115950.0,115940.0,3.3346878]
[1757728226326,0.28602398,115950.0,115940.0,2.5452478]
[1757728226526,0.31117053,115950.0,115940.0,3.3346878]
[1757728228533,0.31117053,115950.0,115940.0,1.6784478]
[1757728228833,0.31117053,115950.0,115940.0,1.3176478]
[1757728229535,0.33346053,115950.0,115940.0,0.5282078]
[1757728229734,0.08346053,115950.0,115940.0,1.3172478]
[1757728233543,0.08346053,115950.0,115940.0,1.11108]
[1757728233740,0.08346053,115950.0,115940.0,1.3172478]
[1757728235442,0.08346053,115950.0,115940.0,1.11108]
[1757728235640,0.08346053,115950.0,115940.0,1.3172478]
[1757728241648,0.44426053,115950.0,115940.0,1.3172478]
[1757728243744,0.47508893,115950.0,115940.0,1.3172478]
[1757728244347,0.44426053,115950.0,115940.0,1.3172478]
[1757728246145,0.47508893,115950.0,115940.0,1.3172478]
[1757728248953,0.47508893,115950.0,115940.0,1.11108]
[1757728249153,0.47508893,115950.0,115940.0,1.3172478]
[1757728253654,0.44426053,115950.0,115940.0,1.3172478]
[1757728260461,0.44426053,115950.0,115940.0,1.3430397]
[1757728268866,0.44426053,115950.0,115940.0,0.5539997]
[1757728269059,0.44426053,115950.0,115940.0,1.3417197]
[1757728271867,0.84890033,115950.0,115940.0,0.32204]
[1757728272171,0.84864962,115950.0,115940.0,1.10976]
[1757728272468,0.80240883,115950.0,115940.0,1.1870799]
[1757728273263,0.80240883,115950.0,115940.0,1.2643998]
[1757728274570,0.80240883,115950.0,115940.0,1.10976]
[1757728274766,0.80240883,115950.0,115940.0,1.2643998]
[1757728279974,0.80240883,115950.0,115940.0,1.10976]
[1757728280171,0.80240883,115950.0,115940.0,1.2643998]
[1757728280669,0.95704863,115950.0,115940.0,0.001]
[1757728280868,0.92622023,115950.0,115940.0,0.001]
[1757728281063,0.98787306,115950.0,115940.0,0.36416]
[1757728282270,0.92622023,115950.0,115940.0,0.36416]
[1757728282974,0.03449,115940.0,115930.0,0.68936]
[1757728283277,0.86583695,115940.0,115930.0,0.68936]
[1757728283480,0.8909835,115940.0,115930.0,0.68936]
[1757728284584,0.8919835,115940.0,115930.0,0.68936]
[1757728285573,0.8919835,115940.0,115930.0,0.69036]
[1757728285779,0.96198466,115940.0,115930.0,0.69036]
[1757728291784,0.91584683,115940.0,115930.0,0.69036]
[1757728292781,0.97749966,115940.0,115930.0,0.69036]
[1757728293672,0.96190406,115940.0,115930.0,0.69036]
[1757728294973,0.60110406,115940.0,115930.0,0.69036]
[1757728295282,1.32270406,115940.0,115930.0,0.69036]
[1757728295884,1.32270406,115940.0,115930.0,0.71267]
[1757728300589,1.27664683,115940.0,115930.0,0.71267]
[1757728302690,1.33829966,115940.0,115930.0,0.71267]
[1757728302987,1.10633996,115940.0,115930.0,0.71267]
[1757728303188,1.33829966,115940.0,115930.0,0.71267]
[1757728309392,1.10633996,115940.0,115930.0,0.71267]
[1757728309593,1.33829966,115940.0,115930.0,0.71267]
[1757728313291,1.35375952,115940.0,115930.0,0.71267]
[1757728313484,1.27664683,115940.0,115930.0,0.71267]
[1757728315390,1.35375952,115940.0,115930.0,0.71267]
[1757728316294,1.27664683,115940.0,115930.0,0.71267]
[1757728318099,1.33830053,115940.0,115930.0,0.71267]
[1757728319591,1.33630053,115940.0,115930.0,0.71167]
[1757728319796,1.33930053,115940.0,115930.0,0.71267]
[1757728322098,1.33930053,115940.0,115930.0,0.69036]
[1757728322291,1.33930053,115940.0,115930.0,0.71148]
[1757728322491,1.10734083,115940.0,115930.0,0.71148]
[1757728322687,1.31367239,115940.0,115930.0,0.71148]
[1757728322887,1.21050661,115940.0,115930.0,0.81464578]
[1757728323192,1.09442083,115940.0,115930.0,1.59724578]
[1757728323499,1.03276713,115940.0,115930.0,1.59724578]
[1757728323697,1.1821699,115940.0,115930.0,1.59724578]
[1757728324096,1.1821699,115940.0,115930.0,1.29724578]
[1757728325799,1.1821699,115940.0,115930.0,0.60788578]
[1757728326099,1.29878568,115940.0,115930.0,1.0596]
[1757728326599,1.29878568,115940.0,115930.0,0.02212]
[1757728326799,1.29878568,115940.0,115930.0,0.8096]
[1757728328602,1.09245412,115940.0,115930.0,0.8096]
[1757728328802,1.29878568,115940.0,115930.0,0.8096]
[1757728330298,1.29878568,115940.0,115930.0,0.001]
[1757728330502,1.29878568,115940.0,115930.0,0.78844]
[1757728330802,1.29878568,115940.0,115930.0,0.80956]
[1757728332303,1.1956199,115940.0,115930.0,0.80956]
[1757728333195,1.29878568,115940.0,115930.0,0.80956]
[1757728333807,1.31420239,115940.0,115930.0,0.80956]
[1757728334509,1.31420239,115940.0,115930.0,0.02212]
[1757728334899,1.31420239,115940.0,115930.0,0.80952]
[1757728335098,1.31420239,115940.0,115930.0,0.02212]
[1757728335398,1.31420239,115940.0,115930.0,0.78836]
[1757728336509,1.31420239,115940.0,115930.0,0.80948]
[1757728336803,1.31420239,115940.0,115930.0,0.001]
[1757728337014,1.25254869,115940.0,115930.0,0.78836]
[1757728337211,1.31420239,115940.0,115930.0,0.78836]
[1757728337708,1.31420239,115940.0,115930.0,0.001]
[1757728338203,1.31420239,115940.0,115930.0,0.46564]
[1757728338410,1.31420239,115940.0,115930.0,0.78836]
[1757728338607,1.10787083,115940.0,115930.0,0.001]
[1757728338808,1.25254869,115940.0,115930.0,0.001]
[1757728340408,1.31420239,115940.0,115930.0,0.001]
[1757728340609,1.04621713,115940.0,115930.0,0.001]
[1757728340813,1.25254869,115940.0,115930.0,0.001]
[1757728341012,1.32966138,115940.0,115930.0,0.001]
[1757728341817,1.34986811,115940.0,115930.0,0.001]
[1757728343621,1.33433778,115940.0,115930.0,0.001]
[1757728346421,1.12800622,115940.0,115930.0,0.001]
[1757728346722,1.33433778,115940.0,115930.0,0.001]
[1757728347618,1.27275542,115940.0,115930.0,0.001]
[1757728352228,1.3759212,115940.0,115930.0,0.001]
[1757728352428,1.27275542,115940.0,115930.0,0.001]
[1757728352630,1.40112426,115940.0,115930.0,0.001]
[1757728353328,1.25637506,115940.0,115930.0,0.001]
[1757728353628,1.46270662,115940.0,115930.0,0.001]
[1757728355833,2.3533924,115940.0,115930.0,0.001]
[1757728356230,2.25022662,115940.0,115930.0,0.001]
[1757728356733,2.3533924,115940.0,115930.0,0.001]
[1757728358734,0.03514,115900.0,115890.0,2.45676]
[1757728359034,0.52425233,115900.0,115890.0,2.55992578]
[1757728359223,0.52425233,115900.0,115890.0,2.56992578]
[1757728359937,0.52425233,115900.0,115890.0,2.57292578]
[1757728360534,0.42208655,115900.0,115890.0,2.57492578]
[1757728360737,0.41767724,115900.0,115890.0,2.57492578]
[1757728360938,0.41767724,115900.0,115890.0,2.87492578]
[1757728361934,0.41767724,115900.0,115890.0,2.87292578]
[1757728362139,0.41767724,115900.0,115890.0,2.86992578]
[1757728362434,0.41767724,115900.0,115890.0,2.87092578]
[1757728363433,0.48717126,115900.0,115890.0,2.87092578]
[1757728368444,0.48717126,115900.0,115890.0,2.76776]
[1757728368636,0.48717126,115900.0,115890.0,2.87092578]
[1757728369040,0.48717126,115900.0,115890.0,2.87084578]
[1757728371043,0.48717126,115900.0,115890.0,2.76768]
[1757728371241,0.48717126,115900.0,115890.0,2.87084578]
[1757728371440,0.48717126,115900.0,115890.0,2.76768]
[1757728371641,0.48717126,115900.0,115890.0,2.87084578]
[1757728373634,0.46553126,115900.0,115890.0,2.87084578]
[1757728373942,0.46553126,115900.0,115890.0,3.22401156]
[1757728373943,0.45644057,115900.0,115890.0,3.22401156]
[1757728376248,0.45644057,115900.0,115890.0,3.12084578]
[1757728377345,0.09564057,115900.0,115890.0,3.12084578]
[1757728377948,0.09564057,115900.0,115890.0,3.22401156]
[1757728378450,0.09564057,115900.0,115890.0,3.01768]
[1757728378951,0.09564057,115900.0,115890.0,3.22401156]
[1757728379949,0.09564057,115900.0,115890.0,3.01768]
[1757728380249,0.09564057,115900.0,115890.0,3.22401156]
[1757728382850,0.09564057,115900.0,115890.0,2.97401156]
[1757728383847,0.09564057,115900.0,115890.0,3.22401156]
[1757728384038,0.3609293,115910.0,115900.0,0.02132]
[1757728384238,0.0001293,115910.0,115900.0,0.33496734]
[1757728384440,0.0001293,115910.0,115900.0,1.46830062]
[1757728385549,0.0011293,115910.0,115900.0,1.46930062]
[1757728386455,0.0001293,115910.0,115900.0,1.46830062]
[1757728387249,0.0001293,115910.0,115900.0,2.25762062]
[1757728387454,0.0001293,115910.0,115900.0,2.25862062]
[1757728388456,0.0011293,115910.0,115900.0,2.25962062]
[1757728389549,0.0001293,115910.0,115900.0,2.25862062]
[1757728389856,0.0011293,115910.0,115900.0,2.26062062]
[1757728392059,0.0011293,115910.0,115900.0,1.47130062]
[1757728392460,0.0011293,115910.0,115900.0,2.26094062]
[1757728392664,0.0011293,115910.0,115900.0,1.47130062]
[1757728392962,0.0011293,115910.0,115900.0,2.26090062]
[1757728400967,0.0011293,115910.0,115900.0,2.26074062]
[1757728401462,0.0011293,115910.0,115900.0,1.23927]
[1757728401657,0.0011293,115910.0,115900.0,2.26078062]
[1757728401961,0.0011293,115910.0,115900.0,1.47130062]
[1757728402162,0.0011293,115910.0,115900.0,2.02883]
[1757728402366,0.0011293,115910.0,115900.0,2.26086062]
[1757728405268,0.0011293,115910.0,115900.0,2.02883]
[1757728405468,0.0011293,115910.0,115900.0,2.26078062]
[1757728406471,0.0011293,115910.0,115900.0,1.47130062]
[1757728406666,0.0011293,115910.0,115900.0,2.26058062]
[1757728408274,0.0011293,115910.0,115900.0,1.89978062]
[1757728415467,0.0011293,115910.0,115900.0,1.66775]
[1757728415670,0.0011293,115910.0,115900.0,1.89978062]
[1757728416176,0.0011293,115910.0,115900.0,1.66775]
[1757728416373,0.0011293,115910.0,115900.0,1.89978062]
[1757728419381,0.0011293,115910.0,115900.0,1.64978062]
[1757728423987,0.02670694,115910.0,115900.0,1.64978062]
[1757728428985,0.04783694,115910.0,115900.0,1.64942062]
[1757728429385,0.04783694,115910.0,115900.0,1.64930062]
[1757728431588,0.0222593,115910.0,115900.0,1.64930062]
[1757728431788,0.04787634,115910.0,115900.0,1.64930062]
[1757728432589,0.02674634,115910.0,115900.0,1.64930062]
[1757728440489,0.02674634,115910.0,115900.0,1.41727]
[1757728440700,0.02674634,115910.0,115900.0,1.64930062]
[1757728443804,0.02674208,115910.0,115900.0,1.64930062]
[1757728444403,0.02674208,115910.0,115900.0,1.62357196]
[1757728445301,0.02929864,115910.0,115900.0,1.62357196]
[1757728448193,0.02929864,115910.0,115900.0,1.41727]
[1757728448492,0.02929864,115910.0,115900.0,1.62357196]
[1757728449501,0.90137832,115910.0,115900.0,0.603]
[1757728449693,0.90137832,115910.0,115900.0,0.003]
[1757728449890,0.94755405,115910.0,115900.0,0.003]
[1757728450102,0.59440307,115910.0,115900.0,0.003]
[1757728450604,0.59440307,115910.0,115900.0,0.02401]
[1757728451403,0.62516987,115910.0,115900.0,0.003]
[1757728453106,0.57899414,115910.0,115900.0,0.003]
[1757728453809,0.62516987,115910.0,115900.0,0.003]
[1757728455607,0.57899414,115910.0,115900.0,0.003]
[1757728459202,0.47584316,115910.0,115900.0,0.003]
[1757728459401,0.62516987,115910.0,115900.0,0.003]
[1757728459707,0.57899414,115910.0,115900.0,0.003]
[1757728460602,0.57899414,115910.0,115900.0,0.02401]
[1757728462007,0.62516987,115910.0,115900.0,0.02401]
[1757728463004,0.57899414,115910.0,115900.0,0.02401]
[1757728463509,0.62516987,115910.0,115900.0,0.02401]
[1757728463913,0.59440307,115910.0,115900.0,0.02401]
[1757728464812,0.49125209,115910.0,115900.0,0.79292]
[1757728465113,0.59440307,115910.0,115900.0,0.79292]
[1757728469109,0.54822734,115910.0,115900.0,0.79292]
[1757728469317,0.59429327,115910.0,115900.0,0.81404]
[1757728473020,0.49114229,115910.0,115900.0,0.81404]
[1757728473320,0.54822734,115910.0,115900.0,0.81404]
[1757728473715,0.65137832,115910.0,115900.0,0.003]
[1757728473917,0.71294596,115910.0,115900.0,0.003]
[1757728474218,0.71294596,115910.0,115900.0,0.1634]
[1757728475716,0.60979498,115910.0,115900.0,0.1634]
[1757728477116,0.03611,115840.0,115830.0,0.02112]
[1757728477310,0.03611,115840.0,115830.0,0.59112]
[1757728477311,0.64934238,115840.0,115830.0,0.59112]
[1757728477510,0.57178876,115840.0,115830.0,0.59112]